[Event "9th Sharjah Cup Women 2018"]
[Site "Sharjah"]
[Date "2018.12.17"]
[Round "6"]
[White "Bauyrzhan, Arnash"]
[Black "Alieva, Alexandra"]
[Result "1-0"]
[ECO "C50"]
[WhiteElo "1978"]
[BlackElo "2102"]
[Annotator "NA"]
[PlyCount "119"]
[EventDate "2018.12.14"]
[EventType "swiss"]
[EventCountry "UAE"]
[SourceTitle "playchess.com"]
[Source "ChessBase"]
[SourceQuality "1"]
[TimeControl "5400+30"]

1. e4 {[%emt 0:00:00]} e5 {[%emt 0:00:00]} 2. Nf3 {[%emt 0:00:00]} Nc6 {[%emt 0:00:00]} 3. Bc4 {[%emt 0:00:12]} Bc5 {[%emt 0:00:00]} 4. O-O {[%emt 0:00:25]} Nf6 {[%emt 0:00:08]} 5. d3 {[%emt 0:00:14] LiveBook: 3323 Games} a6 {[%emt 0:00:36]} 6. a4 {[%emt 0:00:19]} O-O {[%emt 0:01:12]} 7. h3 {[%emt 0:00:27]} d5 {[%emt 0:01:49]} 8. exd5 {[%emt 0:02:48]} Nxd5 {[%emt 0:00:09]} 9. Nbd2 {[%emt 0:07:29]} Ba7 {[%emt 0:03:17]} 10. Ne4 {[%emt 0:01:17]} Kh8 {[%emt 0:10:51]} 11. Bd2 {[%emt 0:22:08]} f6 $11 {[%emt 0:04:24]} 12. c3 {[%emt 0:06:40]} Be6 {[%emt 0:04:43]} 13. b4 {[%emt 0:02:38]} Bf7 {[%emt 0:03:38]} 14. Qe2 {[%emt 0:08:32]} Nce7 {[%emt 0:14:21]} 15. Bxd5 {[%emt 0:05:28]} Nxd5 {[%emt 0:02:35]} 16. c4 {[%emt 0:02:59]} Nf4 {[%emt 0:01:17]} 17. Bxf4 {[%emt 0:00:17]} exf4 {[%emt 0:00:04]} 18. Qd2 {[%emt 0:01:26]} Bh5 {[%emt 0:01:24]} 19. Qxf4 {[%emt 0:05:53]} Qxd3 {[%emt 0:02:43]} 20. Ned2 {[%emt 0:03:36]} Rf7 {[%emt 0:05:29]} 21. Rad1 {[%emt 0:08:20]} Qc2 {[%emt 0:06:13]} 22. a5 {[%emt 0:04:43]} Qa4 {[%emt 0:04:45]} 23. c5 {[%emt 0:10:39]} Bxc5 {[%emt 0:04:09]} 24. Qf5 {[%emt 0:00:10]} Bxf3 {[%emt 0:00:43]} 25. Nxf3 {[%emt 0:00:13]} Qxb4 {[%emt 0:09:43]} 26. Ng5 {[%emt 0:00:37]} fxg5 {[%emt 0:00:04]} 27. Qxf7 {[%emt 0:00:05]} Bd6 {[%emt 0:00:30]} 28. Qd5 {[%emt 0:01:59]} Qb5 {[%emt 0:04:11]} 29. Rfe1 {[%emt 0:02:36]} h6 {[%emt 0:01:11]} 30. Qe4 {[%emt 0:01:39]} Rf8 {[%emt 0:03:36]} 31. Rb1 {[%emt 0:00:35]} Qxa5 {[%emt 0:00:04]} 32. Qxb7 {[%emt 0:00:35]} Qd2 {[%emt 0:03:00]} 33. Rf1 {[%emt 0:00:12]} a5 {[%emt 0:01:03]} 34. Qa7 {[%emt 0:01:00]} Qf4 {[%emt 0:00:33]} 35. g3 {[%emt 0:00:08]} Qf5 {[%emt 0:00:07]} 36. Rb8 {[%emt 0:00:40]} Rxb8 {[%emt 0:01:25]} 37. Qxb8+ {[%emt 0:00:02]} Kh7 {[%emt 0:00:04]} 38. Qb1 {[%emt 0:00:47]} Qxb1 {[%emt 0:00:07]} 39. Rxb1 {[%emt 0:00:02]} a4 {[%emt 0:00:06]} 40. Ra1 {[%emt 0:01:18]} a3 {[%emt 0:00:05]} 41. Kf1 {[%emt 0:00:14]} h5 {[%emt 0:01:28]} 42. Ke2 {[%emt 0:00:23]} Kg6 {[%emt 0:00:45]} 43. Kd3 {[%emt 0:00:25]} Kf5 {[%emt 0:00:46]} 44. Ra2 {[%emt 0:00:55]} h4 {[%emt 0:02:16]} 45. g4+ {[%emt 0:00:50]} Kf4 {[%emt 0:00:10]} 46. Ke2 {[%emt 0:00:17]} Ke4 {[%emt 0:00:17]} 47. Rd2 {[%emt 0:00:36]} Be5 {[%emt 0:01:31]} 48. f3+ {[%emt 0:00:13]} Kf4 {[%emt 0:00:18]} 49. Kf2 {[%emt 0:00:15]} Bb2 {[%emt 0:00:35]} 50. Re2 {[%emt 0:01:11]} Bd4+ {[%emt 0:00:33]} 51. Kg2 {[%emt 0:00:01]} Be3 {[%emt 0:01:08]} 52. Ra2 {[%emt 0:00:01]} Bc1 {[%emt 0:00:48]} 53. Rc2 {[%emt 0:01:01]} Ke3 {[%emt 0:05:01]} 54. Rxc1 {[%emt 0:00:21]} a2 {[%emt 0:00:03]} 55. Ra1 {[%emt 0:00:05]} c5 {[%emt 0:00:03]} 56. Rxa2 {[%emt 0:00:09]} c4 {[%emt 0:00:02]} 57. Ra5 {[%emt 0:01:07]} c3 {[%emt 0:00:06]} 58. Rxg5 {[%emt 0:00:10]} c2 {[%emt 0:00:06]} 59. Rc5 {[%emt 0:00:04]} Kd2 {[%emt 0:00:01]} 60. f4 {[%emt 0:00:17]} 1-0

[Event "9th Sharjah Cup Women 2018"]
[Site "Sharjah"]
[Date "2018.12.17"]
[Round "6"]
[White "Shanya Mishra"]
[Black "Enkhtuul, Altan-Ulzii"]
[Result "1/2-1/2"]
[ECO "A56"]
[WhiteElo "1978"]
[BlackElo "2267"]
[Annotator "NA"]
[PlyCount "82"]
[EventDate "2018.12.14"]
[EventType "swiss"]
[EventCountry "UAE"]
[SourceTitle "playchess.com"]
[Source "ChessBase"]
[SourceQuality "1"]
[TimeControl "5400+30"]

1. d4 {[%emt 0:00:00]} Nf6 {[%emt 0:00:00]} 2. c4 {[%emt 0:00:42]} c5 {[%emt 0:00:06]} 3. d5 {[%emt 0:00:23]} g6 {[%emt 0:00:42]} 4. Nc3 {[%emt 0:00:42]} d6 {[%emt 0:00:45]} 5. e4 {[%emt 0:00:53]} Bg7 {[%emt 0:00:14]} 6. Bd3 {[%emt 0:00:52]} O-O {[%emt 0:00:55]} 7. h3 {[%emt 0:02:15] LiveBook: 609 Games} Na6 {[%emt 0:00:54]} 8. Nf3 {[%emt 0:01:21]} Nb4 {[%emt 0:07:34] E90: King's Indian: Classical: Early deviations and 6 h3} (8... e5 9. g4 Nc7 10. Bg5 a6 11. a4 Bd7 12. a5 Rb8 13. Rg1 b5 14. axb6 Rxb6 15. b3 Kh8 16. Bc2 {½-½ (56) Jojua,D (2590)-Gelashvili,T (2575) Lagodekhi 2016}) 9. Bb1 {[%emt 0:03:14]} Nd7 $146 {[%emt 0:01:20]} ({Predecessor:} 9... e5 10. Bg5 Bd7 11. a3 Na6 12. Bd3 Nc7 13. b4 b6 14. Qd2 Qc8 15. g4 b5 16. cxb5 cxb4 17. axb4 {0-1 (42) Fluvia Poyatos,J (2450)-Willemze,T (2414) Catalunya 2014}) 10. Bd2 {[%emt 0:05:26]} Nb6 {[%emt 0:33:00]} 11. Qe2 {[%emt 0:04:39]} Bd7 {[%emt 0:00:59]} 12. a3 {[%emt 0:01:26]} Na6 {[%emt 0:00:27]} 13. Bc2 {[%emt 0:01:59]} Qe8 {[%emt 0:02:23]} 14. Rb1 {[%emt 0:03:04]} e6 {[%emt 0:07:34]} 15. b3 {[%emt 0:03:45]} Nc7 {[%emt 0:01:15]} 16. Bd3 {[%emt 0:01:19]} Nc8 {[%emt 0:02:33]} 17. O-O {[%emt 0:01:32]} exd5 {[%emt 0:02:08]} 18. exd5 {[%emt 0:00:11]} Qxe2 {[%emt 0:00:09]} 19. Bxe2 {[%emt 0:00:20]} Bf5 {[%emt 0:01:23]} 20. Rbc1 {[%emt 0:00:44]} Re8 {[%emt 0:01:28]} 21. Rfe1 {[%emt 0:00:35]} b5 $14 {[%emt 0:01:51]} 22. g4 {[%emt 0:04:17]} Bd7 {[%emt 0:00:53]} 23. Bd3 {[%emt 0:05:27]} bxc4 {[%emt 0:02:52]} 24. bxc4 {[%emt 0:01:09]} Rb8 {[%emt 0:02:48]} 25. Rxe8+ {[%emt 0:03:55]} Nxe8 {[%emt 0:00:33]} 26. Rb1 {[%emt 0:00:54]} Rxb1+ {[%emt 0:00:20]} 27. Bxb1 {[%emt 0:00:08]} Nb6 {[%emt 0:02:29]} 28. Bd3 {[%emt 0:00:25]} f5 {[%emt 0:07:18]} 29. Nh2 {[%emt 0:01:55]} a6 {[%emt 0:05:49]} 30. f3 {[%emt 0:01:16]} fxg4 {[%emt 0:04:16]} 31. hxg4 {[%emt 0:01:41]} Na4 {[%emt 0:00:36]} 32. Nxa4 {[%emt 0:01:58]} Bxa4 {[%emt 0:00:05]} 33. Bc1 {[%emt 0:00:33]} Be5 {[%emt 0:03:14]} 34. Nf1 {[%emt 0:01:24]} Nf6 {[%emt 0:01:39]} 35. Kf2 {[%emt 0:01:36]} Kf7 {[%emt 0:00:19]} 36. Ng3 {[%emt 0:01:58]} Bb3 {[%emt 0:01:31]} 37. Nf1 {[%emt 0:01:54]} Nd7 {[%emt 0:01:05]} 38. Nd2 {[%emt 0:00:43]} Bd4+ {[%emt 0:01:12]} 39. Ke2 {[%emt 0:01:45]} Ba4 {[%emt 0:02:33]} 40. Ne4 {[%emt 0:01:05]} Ke7 {[%emt 0:00:33]} 41. Ng5 {[%emt 0:08:03]} Nf8 {[%emt 0:00:10]} 1/2-1/2

[Event "9th Sharjah Cup Women 2018"]
[Site "Sharjah"]
[Date "2018.12.17"]
[Round "6"]
[White "Greibrokk, Ingrid"]
[Black "Mona, Khaled"]
[Result "1/2-1/2"]
[ECO "A13"]
[WhiteElo "1857"]
[BlackElo "2158"]
[Annotator "NA"]
[PlyCount "73"]
[EventDate "2018.12.14"]
[EventType "swiss"]
[EventCountry "UAE"]
[SourceTitle "playchess.com"]
[Source "ChessBase"]
[SourceQuality "1"]
[TimeControl "5400+30"]

1. c4 {[%emt 0:00:00]} e6 {[%emt 0:00:00]} 2. Nf3 {[%emt 0:00:11]} d5 {[%emt 0:00:00]} 3. cxd5 {[%emt 0:00:22]} exd5 {[%emt 0:00:00]} 4. g3 {[%emt 0:00:05]} Nf6 {[%emt 0:00:05]} 5. Bg2 {[%emt 0:00:11]} Be7 {[%emt 0:00:30]} 6. O-O {[%emt 0:00:05]} O-O {[%emt 0:00:03]} 7. d3 {[%emt 0:03:31]} Bf5 {[%emt 0:00:27] A14: English Opening: 1...e6 with b3 by White} (7... c5 8. b3 Nc6 9. Bb2 d4 10. Nbd2 Nd5 11. Re1 Bg4 12. a3 Rc8 13. Rc1 b6 14. Qc2 Re8 15. Qb1 Bf8 16. h3 Bf5 17. b4 cxb4 18. Rxc6 Rxc6 19. Nxd4 {1-0 (48) Sankalp,G (2374)-Thorn,E (2312) Stockholm 2018}) 8. b3 {[%emt 0:01:33]} Qc8 $146 {[%emt 0:00:16]} ({Predecessor:} 8... c5 9. Nbd2 Nc6 10. Bb2 Re8 11. Rc1 b6 12. Re1 Bg6 13. e4 Nb4 14. Bf1 Nxa2 15. Ra1 {0-1 (29) Banas,K (2045)-Kopera,M Zilina 1997}) 9. Re1 {[%emt 0:04:52]} Bh3 {[%emt 0:02:29]} 10. Bh1 {[%emt 0:02:45]} Bc5 {[%emt 0:00:21]} 11. Ba3 {[%emt 0:00:42]} Nbd7 {[%emt 0:02:10]} 12. Bxc5 {[%emt 0:02:30]} Nxc5 {[%emt 0:00:06]} 13. Nc3 {[%emt 0:02:45]} Ne6 {[%emt 0:01:48]} 14. Rc1 {[%emt 0:16:03]} d4 {[%emt 0:01:14]} 15. Nb1 {[%emt 0:01:03]} c6 {[%emt 0:02:40]} 16. Nbd2 {[%emt 0:01:39]} Qd7 {[%emt 0:00:48]} 17. Qc2 {[%emt 0:04:06]} Rad8 {[%emt 0:01:14]} 18. Qb2 {[%emt 0:00:59]} Rfe8 {[%emt 0:01:17]} 19. b4 $11 {[%emt 0:01:21]} Qe7 {[%emt 0:07:04]} 20. Rc4 {[%emt 0:04:35]} Ng4 {[%emt 0:04:28]} 21. Qc1 {[%emt 0:06:02]} h6 {[%emt 0:05:57]} 22. Ne4 {[%emt 0:02:41]} Rd7 {[%emt 0:05:41]} 23. a3 {[%emt 0:08:28]} f5 {[%emt 0:04:36]} 24. Nc5 {[%emt 0:00:48]} Nxc5 {[%emt 0:00:05]} 25. Rxc5 {[%emt 0:00:38]} Qf6 {[%emt 0:08:26]} 26. Qc4+ {[%emt 0:03:38]} Qe6 {[%emt 0:05:14]} 27. Qxe6+ {[%emt 0:10:39]} Rxe6 {[%emt 0:00:06]} 28. Bg2 {[%emt 0:01:22]} Bxg2 {[%emt 0:00:17]} 29. Kxg2 {[%emt 0:00:01]} g6 {[%emt 0:00:29]} 30. h3 {[%emt 0:00:16]} Nf6 {[%emt 0:00:10]} 31. Rc4 {[%emt 0:01:00]} Red6 {[%emt 0:00:36]} 32. Ne5 {[%emt 0:01:27]} Rg7 {[%emt 0:00:08]} 33. Nf3 {[%emt 0:00:05]} Rgd7 {[%emt 0:03:16]} 34. Ne5 {[%emt 0:00:09]} Rg7 {[%emt 0:00:04]} 35. Nf3 {[%emt 0:00:06]} Rgd7 {[%emt 0:00:01]} 36. Ne5 {[%emt 0:00:08]} Rg7 {[%emt 0:00:01]} 37. Nf3 1/2-1/2

[Event "9th Sharjah Cup Women 2018"]
[Site "Sharjah"]
[Date "2018.12.17"]
[Round "6"]
[White "Al-Shamsi, Ousha"]
[Black "Boshra, Alshaeby"]
[Result "0-1"]
[ECO "B06"]
[WhiteElo "1429"]
[BlackElo "2019"]
[Annotator "NA"]
[PlyCount "31"]
[EventDate "2018.12.14"]
[EventType "swiss"]
[EventCountry "UAE"]
[SourceTitle "playchess.com"]
[Source "ChessBase"]
[SourceQuality "1"]
[TimeControl "5400+30"]

1. e4 {[%emt 0:00:00]} g6 {[%emt 0:00:00]} 2. Nf3 {[%emt 0:00:36]} Bg7 {[%emt 0:00:03]} 3. c3 {[%emt 0:00:11]} d6 {[%emt 0:00:57]} 4. d4 {[%emt 0:00:24]} Nd7 {[%emt 0:00:12]} 5. Bd3 {[%emt 0:01:52]} e5 {[%emt 0:00:46]} 6. Be3 {[%emt 0:02:58]} Ngf6 {[%emt 0:03:43]} 7. h3 {[%emt 0:02:50]} O-O {[%emt 0:00:18]} 8. O-O {[%emt 0:00:07]} b6 {[%emt 0:03:01]} 9. Nbd2 {[%emt 0:01:21]} Bb7 {[%emt 0:01:18]} 10. Rc1 {[%emt 0:06:45]} Qe7 {[%emt 0:10:13]} 11. b4 {[%emt 0:08:50]} d5 {[%emt 0:04:41]} 12. dxe5 {[%emt 0:08:38]} (12. Nxe5 $11 {keeps the balance.} Nxe5 13. dxe5 Qxe5 14. f4) 12... Nxe4 $17 {[%emt 0:01:34]} 13. Re1 {[%emt 0:15:54]} Nxe5 {[%emt 0:02:56]} 14. Bd4 {[%emt 0:04:20]} Nxd3 {[%emt 0:00:30]} 15. Nxe4 {[%emt 0:04:02]} Nxe1 {[%emt 0:01:37]} 16. Ra1 0-1

[Event "9th Sharjah Cup Women 2018"]
[Site "Sharjah"]
[Date "2018.12.18"]
[Round "7"]
[White "Socko, Monika"]
[Black "Stetsko, Lanita"]
[Result "1-0"]
[ECO "E06"]
[WhiteElo "2458"]
[BlackElo "2194"]
[Annotator "ChessBase"]
[PlyCount "57"]
[EventDate "2018.12.14"]
[EventType "swiss"]
[EventCountry "UAE"]
[SourceTitle "playchess.com"]
[Source "ChessBase"]
[SourceQuality "1"]
[TimeControl "5400+30"]

1. d4 {[%emt 0:00:00]} Nf6 {[%emt 0:00:00]} 2. c4 {[%emt 0:00:00]} e6 {[%emt 0:00:00]} 3. Nf3 {[%emt 0:00:00]} d5 {[%emt 0:00:17]} 4. g3 {[%emt 0:00:03]} Be7 {[%emt 0:00:51]} 5. Bg2 {[%emt 0:00:05]} O-O {[%emt 0:00:09]} 6. O-O {[%emt 0:00:08]} dxc4 {[%emt 0:00:03]} 7. Ne5 {[%emt 0:00:28]} Nc6 {[%emt 0:00:39]} 8. Bxc6 {[%emt 0:00:20]} bxc6 {[%emt 0:00:06]} 9. Nxc6 {[%emt 0:00:03]} Qe8 {[%emt 0:00:09]} 10. Nxe7+ {[%emt 0:00:07]} Qxe7 {[%emt 0:00:03]} 11. Qc2 {[%emt 0:00:19]} c5 {[%emt 0:06:51]} 12. Qxc4 {[%emt 0:00:47]} cxd4 {[%emt 0:00:06]} 13. Qxd4 {[%emt 0:00:09]} e5 {[%emt 0:00:07]} 14. Qh4 {[%emt 0:00:06]} h6 {[%emt 0:01:25]} 15. Nc3 {[%emt 0:02:41]} Qe6 {[%emt 0:30:36]} 16. e4 {[%emt 0:11:09]} Bb7 {[%emt 0:15:51]} 17. f3 {[%emt 0:02:08]} Nd7 {[%emt 0:03:19]} 18. g4 {[%emt 0:02:00]} Nc5 {[%emt 0:00:13]} 19. Rd1 {[%emt 0:02:19]} Ba6 {[%emt 0:01:47]} 20. Be3 {[%emt 0:15:36]} Nd3 {[%emt 0:01:15]} 21. Rd2 {[%emt 0:00:18]} Rfc8 {[%emt 0:06:54]} 22. Nd5 {[%emt 0:06:42]} Rc1+ {[%emt 0:06:21]} 23. Rxc1 {[%emt 0:01:15]} Nxc1 {[%emt 0:00:02]} 24. Rc2 {[%emt 0:02:22]} Ne2+ {[%emt 0:03:07]} 25. Kf2 {[%emt 0:02:29]} Nd4 {[%emt 0:04:08]} 26. Bxd4 {[%emt 0:06:56]} exd4 {[%emt 0:00:18]} 27. Rc6 {[%emt 0:01:11]} Qe8 {[%emt 0:04:05]} 28. Rxh6 {[%emt 0:05:57]} gxh6 {[%emt 0:00:14]} 29. Qxh6 {[%emt 0:00:08]} 1-0

[Event "9th Sharjah Cup Women 2018"]
[Site "Sharjah"]
[Date "2018.12.18"]
[Round "7"]
[White "Szczepkowska, Karina"]
[Black "Gu, Xiaobing"]
[Result "1-0"]
[ECO "E94"]
[WhiteElo "2408"]
[BlackElo "2295"]
[Annotator "NA"]
[PlyCount "81"]
[EventDate "2018.12.14"]
[EventType "swiss"]
[EventCountry "UAE"]
[SourceTitle "playchess.com"]
[Source "ChessBase"]
[SourceQuality "1"]
[TimeControl "5400+30"]

1. d4 {[%emt 0:00:00]} Nf6 {[%emt 0:00:00]} 2. c4 {[%emt 0:00:11]} g6 {[%emt 0:00:00]} 3. Nc3 {[%emt 0:00:46]} Bg7 {[%emt 0:00:00]} 4. e4 {[%emt 0:00:50]} d6 {[%emt 0:00:04]} 5. Nf3 {[%emt 0:00:18]} O-O {[%emt 0:00:08]} 6. Be2 {[%emt 0:00:04]} e5 {[%emt 0:00:07]} 7. O-O {[%emt 0:00:11]} Na6 {[%emt 0:04:33]} 8. Re1 {[%emt 0:02:27]} c6 {[%emt 0:00:04]} 9. Bf1 {[%emt 0:00:27]} Bg4 {[%emt 0:00:46]} 10. d5 {[%emt 0:01:00]} c5 {[%emt 0:02:10]} 11. h3 {[%emt 0:00:15]} Bd7 {[%emt 0:00:32]} 12. a3 {[%emt 0:00:06]} Ne8 {[%emt 0:10:08]} 13. Nh2 {[%emt 0:04:55]} f5 {[%emt 0:01:15]} 14. exf5 {[%emt 0:01:59]} gxf5 {[%emt 0:06:16]} 15. f4 {[%emt 0:00:09]} e4 {[%emt 0:00:50]} 16. g4 {[%emt 0:00:07]} Qh4 {[%emt 0:03:54]} 17. Be3 $11 {[%emt 0:02:49]} fxg4 {[%emt 0:15:52]} 18. hxg4 {[%emt 0:26:02]} Qg3+ {[%emt 0:04:43]} 19. Bg2 {[%emt 0:13:58]} Bxc3 {[%emt 0:01:26]} 20. bxc3 {[%emt 0:00:24]} h5 {[%emt 0:07:34]} 21. f5 {[%emt 0:05:30]} Ng7 {[%emt 0:12:28]} 22. Qc1 {[%emt 0:13:49]} Rae8 {[%emt 0:09:17]} 23. Ra2 {[%emt 0:07:42]} Qh4 {[%emt 0:12:51]} 24. Bg5 {[%emt 0:02:02]} Qg3 {[%emt 0:00:01]} 25. Re3 {[%emt 0:01:58]} Qe5 {[%emt 0:00:25]} 26. Rxe4 {[%emt 0:03:30]} Qxe4 {[%emt 0:01:14]} 27. Bxe4 {[%emt 0:00:04]} Rxe4 {[%emt 0:00:03]} 28. f6 {[%emt 0:02:50]} Ne8 {[%emt 0:00:33]} 29. Qc2 {[%emt 0:02:23]} Re1+ {[%emt 0:00:58]} 30. Kf2 {[%emt 0:00:10]} Re7 {[%emt 0:00:34]} 31. Kg2 {[%emt 0:02:30]} Nxf6 {[%emt 0:00:13]} 32. Bh6 {[%emt 0:00:55]} Ne4 {[%emt 0:04:44]} 33. Bxf8 {[%emt 0:00:10]} Kxf8 {[%emt 0:00:01]} 34. Qc1 {[%emt 0:01:12]} hxg4 {[%emt 0:00:49]} 35. Qh6+ {[%emt 0:00:20]} Kf7 {[%emt 0:00:03]} 36. Qf4+ {[%emt 0:00:50]} Kg6 {[%emt 0:00:23]} 37. Re2 {[%emt 0:01:05]} Bf5 {[%emt 0:00:14]} 38. Nxg4 {[%emt 0:00:27]} Nc7 {[%emt 0:02:15]} 39. Nh6 {[%emt 0:02:37]} Bh3+ {[%emt 0:00:46]} 40. Kxh3 {[%emt 0:00:15]} Ng5+ {[%emt 0:00:02]} 41. Qxg5+ {[%emt 0:01:03]} 1-0

[Event "9th Sharjah Cup Women 2018"]
[Site "Sharjah"]
[Date "2018.12.18"]
[Round "7"]
[White "Bulmaga, Irina"]
[Black "Velikic, Adela"]
[Result "1-0"]
[ECO "C12"]
[WhiteElo "2391"]
[BlackElo "2298"]
[Annotator "NA"]
[PlyCount "71"]
[EventDate "2018.12.14"]
[EventType "swiss"]
[EventCountry "UAE"]
[SourceTitle "playchess.com"]
[Source "ChessBase"]
[SourceQuality "1"]
[TimeControl "5400+30"]

1. e4 {[%emt 0:00:00]} e6 {[%emt 0:00:00]} 2. d4 {[%emt 0:00:00]} d5 {[%emt 0:00:00]} 3. Nc3 {[%emt 0:00:00]} Nf6 {[%emt 0:00:00]} 4. Bg5 {[%emt 0:00:00]} Bb4 {[%emt 0:00:00]} 5. e5 {[%emt 0:00:25]} h6 $11 {[%emt 0:00:00] LiveBook: 2403 Games} 6. Bh4 {[%emt 0:00:26]} g5 {[%emt 0:00:13]} 7. Bg3 {[%emt 0:00:08]} Ne4 {[%emt 0:00:06]} 8. Nge2 {[%emt 0:00:09]} c5 {[%emt 0:00:09]} 9. a3 {[%emt 0:00:37]} Bxc3+ {[%emt 0:00:09]} 10. Nxc3 {[%emt 0:00:21]} Nxc3 {[%emt 0:00:10]} 11. bxc3 {[%emt 0:00:06]} Qa5 {[%emt 0:00:06]} 12. Qd2 {[%emt 0:00:24]} Nc6 {[%emt 0:00:12]} 13. dxc5 {[%emt 0:03:25]} Qxc5 {[%emt 0:00:14]} 14. Bd3 {[%emt 0:00:26]} Bd7 {[%emt 0:00:40]} 15. O-O {[%emt 0:00:40]} O-O-O {[%emt 0:06:26]} 16. Kh1 {[%emt 0:02:15]} Qe7 {[%emt 0:21:00]} 17. f4 {[%emt 0:08:48]} Rdf8 {[%emt 0:38:23]} 18. c4 {[%emt 0:06:41]} dxc4 {[%emt 0:08:21]} 19. Bxc4 {[%emt 0:00:04]} h5 {[%emt 0:07:13]} 20. fxg5 {[%emt 0:06:34]} h4 {[%emt 0:00:07]} 21. Bf4 {[%emt 0:03:47]} h3 {[%emt 0:00:18]} 22. Qd6 {[%emt 0:04:23]} hxg2+ {[%emt 0:01:55]} 23. Kxg2 {[%emt 0:01:31]} Qxd6 {[%emt 0:02:06]} 24. exd6 {[%emt 0:00:03]} e5 {[%emt 0:00:10]} 25. Bg3 {[%emt 0:00:58]} Bh3+ {[%emt 0:01:16]} 26. Kg1 {[%emt 0:00:02]} Bxf1 {[%emt 0:00:18]} 27. Rxf1 {[%emt 0:00:03]} Nd8 {[%emt 0:06:27]} 28. Bxe5 {[%emt 0:02:02]} Rh4 {[%emt 0:00:40]} 29. Bd3 {[%emt 0:07:58]} Ne6 {[%emt 0:05:58]} 30. Bg3 {[%emt 0:04:10]} Ra4 {[%emt 0:01:03]} 31. Bf5 {[%emt 0:07:56]} Re8 {[%emt 0:01:18]} 32. Bh3 {[%emt 0:01:42]} Kd8 {[%emt 0:00:29]} 33. Rxf7 {[%emt 0:00:56]} Nxg5 {[%emt 0:00:30]} 34. Rd7+ {[%emt 0:00:35]} Kc8 {[%emt 0:00:00]} 35. Rc7+ {[%emt 0:00:13]} Kd8 {[%emt 0:00:35]} 36. Rc8# {[%emt 0:00:08]} 1-0

[Event "9th Sharjah Cup Women 2018"]
[Site "Sharjah"]
[Date "2018.12.18"]
[Round "7"]
[White "Kulkarni Bhakti"]
[Black "Khukhashvili, Sopiko"]
[Result "1/2-1/2"]
[ECO "B22"]
[WhiteElo "2283"]
[BlackElo "2338"]
[Annotator "NA"]
[PlyCount "79"]
[EventDate "2018.12.14"]
[EventType "swiss"]
[EventCountry "UAE"]
[SourceTitle "playchess.com"]
[Source "ChessBase"]
[SourceQuality "1"]
[TimeControl "5400+30"]

1. e4 {[%emt 0:00:00]} c5 {[%emt 0:00:29]} 2. c3 {[%emt 0:00:10]} e6 {[%emt 0:01:31]} 3. d4 {[%emt 0:01:42]} d5 {[%emt 0:00:20]} 4. exd5 {[%emt 0:02:49]} exd5 {[%emt 0:00:29]} 5. Nf3 {[%emt 0:00:34]} Be7 {[%emt 0:03:42]} 6. Bb5+ {[%emt 0:04:54]} Bd7 {[%emt 0:00:21]} 7. Bxd7+ {[%emt 0:01:25]} Nxd7 {[%emt 0:00:10]} 8. dxc5 {[%emt 0:00:54]} Nxc5 {[%emt 0:00:46]} 9. O-O {[%emt 0:00:57]} Nf6 {[%emt 0:00:19]} 10. Nd4 {[%emt 0:01:26]} Qd7 {[%emt 0:00:53]} 11. Qf3 {[%emt 0:01:01]} Qg4 {[%emt 0:07:34]} 12. Qe3 {[%emt 0:12:59]} Qe4 {[%emt 0:02:46]} 13. f3 {[%emt 0:01:08]} Qxe3+ {[%emt 0:01:41]} 14. Bxe3 $11 {[%emt 0:00:03]} a6 {[%emt 0:02:03]} 15. Nf5 {[%emt 0:02:06]} Ne6 {[%emt 0:00:07]} 16. Nd2 {[%emt 0:11:29]} g6 {[%emt 0:06:05]} 17. Nxe7 {[%emt 0:00:42]} Kxe7 {[%emt 0:00:02]} 18. Nb3 {[%emt 0:00:35]} Rac8 {[%emt 0:00:54]} 19. Rfe1 {[%emt 0:00:52]} h6 {[%emt 0:05:39]} 20. Rad1 {[%emt 0:03:55]} Kf8 {[%emt 0:01:00]} 21. Bf2 {[%emt 0:03:32]} Kg7 {[%emt 0:02:14]} 22. Bg3 {[%emt 0:00:13]} Rhd8 {[%emt 0:02:50]} 23. Be5 {[%emt 0:00:55]} g5 {[%emt 0:01:55]} 24. Rd2 {[%emt 0:04:07]} Kg6 {[%emt 0:00:29]} 25. Bxf6 {[%emt 0:05:46]} Kxf6 {[%emt 0:00:02]} 26. Red1 {[%emt 0:00:28]} Ke5 {[%emt 0:00:05]} 27. Nd4 {[%emt 0:02:14]} Nxd4 {[%emt 0:01:03]} 28. Rxd4 {[%emt 0:00:10]} b5 {[%emt 0:00:39]} 29. f4+ {[%emt 0:03:20]} Ke6 {[%emt 0:02:13]} 30. Re1+ {[%emt 0:04:12]} Kf6 {[%emt 0:00:02]} 31. Re5 {[%emt 0:02:01]} Rc5 {[%emt 0:01:32]} 32. g3 {[%emt 0:05:28]} Rd6 {[%emt 0:20:09]} 33. h3 {[%emt 0:03:43]} Re6 {[%emt 0:04:50]} 34. Rexd5 {[%emt 0:00:52]} Rxd5 {[%emt 0:00:03]} 35. Rxd5 {[%emt 0:00:07]} gxf4 {[%emt 0:00:08]} 36. gxf4 {[%emt 0:00:10]} Re2 {[%emt 0:00:06]} 37. Rd6+ {[%emt 0:01:01]} Kf5 {[%emt 0:00:02]} 38. Rxa6 {[%emt 0:00:53]} Rxb2 {[%emt 0:00:13]} 39. Rxh6 {[%emt 0:01:16]} Rxa2 {[%emt 0:00:31]} 40. Rh5+ {[%emt 0:01:44] Ke5} 1/2-1/2

[Event "9th Sharjah Cup Women 2018"]
[Site "Sharjah"]
[Date "2018.12.18"]
[Round "7"]
[White "Nguyen, Thi Mai Hung"]
[Black "Cornette, Deimante"]
[Result "1/2-1/2"]
[ECO "E32"]
[WhiteElo "2280"]
[BlackElo "2455"]
[Annotator "ChessBase"]
[PlyCount "61"]
[EventDate "2018.12.14"]
[EventType "swiss"]
[EventCountry "UAE"]
[SourceTitle "playchess.com"]
[Source "ChessBase"]
[SourceQuality "1"]
[TimeControl "5400+30"]

1. d4 {[%emt 0:09:25]} Nf6 {[%emt 0:00:00]} 2. c4 {[%emt 0:00:10]} e6 {[%emt 0:01:03]} 3. Nc3 {[%emt 0:00:14]} Bb4 {[%emt 0:00:19]} 4. Qc2 {[%emt 0:00:06]} O-O {[%emt 0:01:26]} 5. Bg5 {[%emt 0:02:07]} h6 {[%emt 0:01:24]} 6. Bh4 {[%emt 0:00:06]} d5 {[%emt 0:01:51]} 7. cxd5 {[%emt 0:01:05]} exd5 {[%emt 0:00:21]} 8. e3 {[%emt 0:00:10]} Be6 {[%emt 0:14:51]} 9. a3 {[%emt 0:04:47]} Be7 {[%emt 0:00:19]} 10. Nf3 {[%emt 0:00:34]} Nbd7 {[%emt 0:00:39]} 11. Be2 {[%emt 0:06:12]} c6 {[%emt 0:06:24]} 12. O-O {[%emt 0:00:50]} Ne4 {[%emt 0:02:10]} 13. Nxe4 {[%emt 0:09:45]} Bxh4 {[%emt 0:00:59]} 14. Nxh4 {[%emt 0:00:16]} Qxh4 {[%emt 0:08:29]} 15. Nc5 {[%emt 0:06:15]} Nxc5 {[%emt 0:00:35]} 16. Qxc5 {[%emt 0:03:36]} Rfc8 {[%emt 0:06:28]} 17. b4 {[%emt 0:01:13]} Qd8 {[%emt 0:02:35]} 18. Rfc1 {[%emt 0:05:31]} b6 {[%emt 0:03:02]} 19. Qc2 {[%emt 0:03:31]} a5 {[%emt 0:00:34]} 20. Bd3 {[%emt 0:02:42]} axb4 {[%emt 0:03:15]} 21. axb4 {[%emt 0:00:02]} Rxa1 {[%emt 0:00:27]} 22. Rxa1 {[%emt 0:00:02]} Ra8 {[%emt 0:00:15]} 23. Qb2 {[%emt 0:04:05]} Rxa1+ {[%emt 0:14:11]} 24. Qxa1 {[%emt 0:00:14]} Qb8 {[%emt 0:00:05]} 25. h3 {[%emt 0:06:17]} g6 {[%emt 0:01:29]} 26. Qa3 {[%emt 0:02:05]} Qd6 {[%emt 0:02:16]} 27. Bc2 {[%emt 0:03:31]} Kg7 {[%emt 0:00:47]} 28. Qc3 {[%emt 0:01:49]} Kg8 {[%emt 0:00:40]} 29. Qa3 {[%emt 0:00:11]} Kg7 {[%emt 0:00:09]} 30. Qc3 {[%emt 0:00:05]} Kg8 {[%emt 0:00:06]} 31. Qa3 {[%emt 0:02:14]} 1/2-1/2